bitfinex-derivatives/quotes_ETHF0:USTF0_20240826
["timestamp","ask_amount","ask_price","bid_price","bid_amount"]
[1724644428280,218.31318057,2744.8,2744.7,9.122934]
[1724644428490,214.66998057,2744.8,2744.7,9.122934]
[1724644429188,214.66998057,2744.8,2744.7,9.487124]
[1724644429392,214.66998057,2744.8,2744.7,8.06099123]
[1724644430282,214.66998057,2744.8,2744.7,6.7031759]
[1724644430594,214.66998057,2744.8,2744.7,7.25865144]
[1724644430789,214.66998057,2744.8,2744.7,6.7031759]
[1724644430991,214.66998057,2744.8,2744.7,8.06135108]
[1724644431192,214.66998057,2744.8,2744.7,8.06154574]
[1724644431690,214.66998057,2744.8,2744.7,7.69735574]
[1724644431882,214.66998057,2744.8,2744.7,9.12426928]
[1724644432393,214.66998057,2744.8,2744.7,7.69735574]
[1724644432581,214.66998057,2744.8,2744.7,8.06154574]
[1724644432985,214.66998057,2744.8,2744.7,9.96272165]
[1724644433695,214.66998057,2744.8,2744.7,13.60547316]
[1724644434491,0.0029985,2744.8,2744.7,13.60547316]
[1724644434886,0.0029985,2744.8,2744.7,10.39767316]
[1724644435187,0.0029985,2744.8,2744.7,13.60547316]
[1724644436086,0.0029985,2744.8,2744.7,11.78405585]
[1724644436387,0.0029985,2744.8,2744.7,13.60541323]
[1724644437594,0.0029985,2744.8,2744.7,10.39761323]
[1724644437896,0.0029985,2744.8,2744.7,10.39423732]
[1724644438094,0.0029985,2744.8,2744.7,9.96493058]
[1724644438693,0.0029985,2744.8,2744.7,6.75713058]
[1724644438996,0.0029985,2744.8,2744.7,9.96493058]
[1724644440090,0.0029985,2744.8,2744.7,8.06152256]
[1724644440690,0.0029985,2744.8,2744.7,8.06156162]
[1724644441801,0.0029985,2744.8,2744.7,9.96496964]
[1724644442114,0.0029985,2744.8,2744.7,8.06156162]
[1724644442400,0.0029985,2744.8,2744.7,9.48910836]
[1724644442587,0.0029985,2744.8,2744.7,8.13095691]
[1724644442787,0.0029985,2744.8,2744.7,8.93363347]
[1724644442983,0.0029985,2744.8,2744.7,8.13095691]
[1724644443189,0.0029985,2744.8,2744.7,9.48910161]
[1724644443689,0.0029985,2744.8,2744.7,10.04457145]
[1724644444490,0.0029985,2744.8,2744.7,10.04458076]
[1724644444993,0.0029985,2744.8,2744.7,8.37039076]
[1724644445193,0.0029985,2744.8,2744.7,7.38306715]
[1724644445194,3.6461985,2744.8,2744.7,7.38306715]
[1724644445393,3.6461985,2744.8,2744.7,6.43141454]
[1724644446290,3.6461985,2744.8,2744.7,5.07327225]
[1724644446488,3.6461985,2744.8,2744.7,6.43174805]
[1724644446696,3.6461985,2744.8,2744.7,5.62887604]
[1724644449300,3.6461985,2744.8,2744.7,5.99306604]
[1724644449600,0.0029985,2744.8,2744.7,5.99306604]
[1724644450007,3.6461985,2744.8,2744.7,5.43746225]
[1724644450305,3.6461985,2744.8,2744.7,5.9930967]
[1724644451908,3.6461985,2744.8,2744.7,2.7852967]
[1724644452800,3.6461985,2744.8,2744.7,2.22982445]
[1724644453409,0.0029985,2744.8,2744.7,2.22982445]
[1724644453614,0.0029985,2744.8,2744.7,1.67419]
[1724644453814,0.0029985,2744.8,2744.7,2.22991991]
[1724644454103,3.6461985,2744.8,2744.7,2.22991991]
[1724644454706,0.0029985,2744.8,2744.7,2.22991991]
[1724644455303,0.0029985,2744.8,2744.7,1.86572991]
[1724644455610,3.6461985,2744.8,2744.7,1.86572991]
[1724644456702,3.6461985,2744.8,2744.7,2.22991991]
[1724644457112,3.6461985,2744.8,2744.7,1.67419]
[1724644457310,3.6461985,2744.8,2744.7,2.22994156]
[1724644459010,3.6461985,2744.8,2744.7,1.86575156]
[1724644460302,3.6461985,2744.8,2744.7,2.22994156]
[1724644460505,3.6461985,2744.8,2744.7,2.22996042]
[1724644460902,3.6461985,2744.8,2744.7,2.23009999]
[1724644461513,0.0029985,2744.8,2744.7,2.23009999]
[1724644461812,0.0029985,2744.8,2744.7,2.23015382]
[1724644462613,3.6461985,2744.8,2744.7,1.86596382]
[1724644465306,3.6461985,2744.8,2744.7,2.23015382]
[1724644466013,3.6461985,2744.8,2744.7,1.86596382]
[1724644466414,3.6461985,2744.8,2744.7,2.23015382]
[1724644466810,0.0029985,2744.8,2744.7,2.23015382]
[1724644467210,3.6461985,2744.8,2744.7,2.23015382]
[1724644467418,3.6461985,2744.8,2744.7,1.86596382]
[1724644470315,4.0103785,2744.8,2744.7,1.86596382]
[1724644470720,4.0103785,2744.8,2744.7,0.55596382]
[1724644473615,5.92203576,2744.8,2744.7,0.55620853]
[1724644474323,4.0103785,2744.8,2744.7,0.55620853]
[1724644474620,5.92203576,2744.8,2744.7,0.55620853]
[1724644475718,0.36421,2744.6,2744.4,0.95262549]
[1724644476022,3.46857157,2744.5,2744.0,2.26262549]
[1724644476215,2.27418053,2744.3,2744.0,1.31]
[1724644476412,2.27418053,2744.3,2744.0,1.67428]
[1724644476736,0.3661,2744.2,2744.0,1.67428]
[1724644477110,4.0101,2744.2,2744.0,1.67428]
[1724644477922,0.3661,2744.2,2744.0,1.67428]
[1724644480117,0.3661,2744.2,2744.0,1.31]
[1724644480919,0.3661,2744.2,2744.0,1.67428]
[1724644481521,0.73036,2744.2,2744.0,1.31]
[1724644482323,0.3661,2744.2,2744.0,1.67429]
[1724644482528,0.73036,2744.2,2744.0,1.31]
[1724644482921,0.3661,2744.2,2744.0,1.67428]
[1724644483423,0.73036,2744.2,2744.0,1.31]
[1724644483619,4.37436,2744.2,2744.0,1.31]
[1724644484527,0.73036,2744.2,2744.0,1.31]
[1724644484725,0.73036,2744.2,2744.0,1.67429]
[1724644485033,0.3661,2744.2,2744.0,1.67429]
[1724644485337,0.3661,2744.2,2744.1,0.3672]
[1724644485521,0.3661,2744.2,2744.1,1.6772]
[1724644487227,0.3661,2744.2,2744.1,2.04147]
[1724644487431,0.3661,2744.2,2744.1,1.6772]
[1724644488328,3.30009157,2744.7,2744.1,1.6772]
[1724644488329,7.73301684,2744.8,2744.5,0.36421]
[1724644488519,0.3744,2744.7,2744.6,1.31]
[1724644489933,0.73859,2744.7,2744.6,1.31]
[1724644490131,0.73859,2744.7,2744.5,1.67421]
[1724644498149,0.3744,2744.7,2744.6,0.36421]
[1724644498337,0.3744,2744.7,2744.6,2.39091]
[1724644498827,0.3744,2744.7,2744.6,2.0267]
[1724644499227,0.73859,2744.7,2744.6,2.0267]
[1724644501935,0.3671885,2744.8,2744.6,2.3909]
[1724644502142,0.7495885,2744.8,2744.6,2.3909]
[1724644503139,0.36419,2744.7,2744.6,2.0267]
[1724644503337,0.36419,2744.7,2744.6,2.39091]
[1724644503538,0.7495885,2744.8,2744.6,2.39091]
[1724644504432,0.36419,2744.7,2744.6,2.39091]
[1724644504736,0.36419,2744.7,2744.6,2.0267]
[1724644508232,0.36419,2744.7,2744.6,2.39091]
[1724644508437,0.7495885,2744.8,2744.6,2.39091]
[1724644509733,0.36419,2744.7,2744.6,2.39091]
[1724644510646,0.7495885,2744.8,2744.6,2.39091]
[1724644511044,0.7495885,2744.8,2744.6,2.0267]
[1724644512050,0.7495885,2744.8,2744.6,2.3909]
[1724644515455,0.3853985,2744.8,2744.6,2.3909]
[1724644515749,0.7495885,2744.8,2744.6,2.3909]
[1724644517548,0.36419,2744.7,2744.6,2.3909]
[1724644518638,0.36419,2744.7,2744.6,2.0267]
[1724644519641,0.36419,2744.7,2744.6,1.31]
[1724644519847,0.36419,2744.7,2744.5,1.67421]
[1724644520548,0.36419,2744.7,2744.5,0.36421]
[1724644521753,0.36419,2744.7,2744.4,4.88202]
[1724644521954,0.36419,2744.7,2744.5,0.92056897]
[1724644522148,0.36419,2744.7,2744.5,0.36422]
[1724644522553,0.36419,2744.7,2744.5,1.67422]
[1724644522847,2.65950903,2744.8,2744.6,0.36421]
[1724644523040,0.7495885,2744.8,2744.6,0.36421]
[1724644523239,0.7495885,2744.8,2744.6,1.10031]
[1724644525251,0.36419,2744.7,2744.6,1.10031]
[1724644525453,0.36419,2744.7,2744.6,1.65662276]
[1724644526054,0.36419,2744.7,2744.6,1.29241276]
[1724644527759,0.3853985,2744.8,2744.6,1.10031]
[1724644527760,0.7495785,2744.8,2744.6,1.10031]
[1724644528461,0.7495785,2744.8,2744.7,0.55630042]
[1724644528862,0.7495785,2744.8,2744.6,1.10031]
[1724644529062,0.36419,2744.7,2744.6,1.10031]
[1724644529260,0.36419,2744.7,2744.6,1.29241623]
[1724644530260,0.36419,2744.7,2744.6,1.65662623]
[1724644530766,0.36419,2744.7,2744.6,1.10031]
[1724644531156,0.36419,2744.7,2744.6,1.65670824]
[1724644531472,2.65950903,2744.8,2744.6,1.65670824]
[1724644531661,2.65950903,2744.8,2744.7,0.55639824]
[1724644532167,0.7495885,2744.8,2744.7,0.55639824]
[1724644532367,2.66007265,2744.8,2744.7,0.55639824]
[1724644532768,0.7495885,2744.8,2744.7,0.55639824]
[1724644533061,2.66006716,2744.8,2744.7,0.55639824]
[1724644533267,0.7495885,2744.8,2744.7,0.55639824]
[1724644534168,3.13916007,2744.8,2744.7,0.55639824]
[1724644539179,3.13916007,2744.8,2744.7,0.92058824]
[1724644539376,2.39257007,2744.8,2744.7,0.92058824]
[1724644539684,0.0029985,2744.8,2744.7,5.86724226]
[1724644540383,1.91458333,2744.8,2744.7,5.47964226]
[1724644541078,1.91458333,2744.8,2744.7,5.47998794]
[1724644541876,1.91458333,2744.8,2744.7,3.29423373]
[1724644542678,0.0029985,2744.8,2744.7,3.29423373]
[1724644543484,0.0029985,2744.8,2744.7,1.86666326]
[1724644544289,0.0029985,2744.8,2744.7,1.31]
[1724644544590,0.0029985,2744.8,2744.7,1.67419]
[1724644544780,0.0029985,2744.8,2744.7,2.23084595]
[1724644545482,0.0029985,2744.8,2744.7,1.86665595]
[1724644546187,0.0029985,2744.8,2744.7,2.23084595]
[1724644546391,0.0029985,2744.8,2744.7,1.86665595]
[1724644546685,0.0029985,2744.8,2744.7,2.23084595]
[1724644547679,0.0029985,2744.8,2744.7,2.23075864]
[1724644548476,0.0029985,2744.8,2744.7,5.48339772]
[1724644548681,0.0029985,2744.8,2744.7,5.83649772]
[1724644549288,0.0029985,2744.8,2744.7,9.04429772]
[1724644549489,0.0029985,2744.8,2744.7,5.83649772]
[1724644549690,0.0029985,2744.8,2744.7,9.04429772]
[1724644550784,0.0029985,2744.8,2744.7,7.22277338]
[1724644551291,0.0029985,2744.8,2744.7,6.66620474]
[1724644551486,0.0029985,2744.8,2744.7,7.22270328]
[1724644552778,0.0029985,2744.8,2744.7,6.66620474]
[1724644553194,0.0029985,2744.8,2744.7,7.22266972]
[1724644553391,0.0029985,2744.8,2744.7,7.6130832]
[1724644553692,0.0029985,2744.8,2744.7,9.04419794]
[1724644553887,0.0029985,2744.8,2744.7,7.6130832]
[1724644554085,0.0029985,2744.8,2744.7,8.56709738]
[1724644554995,0.0029985,2744.8,2744.7,4.8028324]
[1724644555190,0.0029985,2744.8,2744.7,5.3593838]
[1724644555497,0.0029985,2744.8,2744.7,5.35928624]
[1724644556292,0.0029985,2744.8,2744.7,4.40537993]
[1724644556800,0.0029985,2744.8,2744.7,5.35926027]
[1724644558291,0.0029985,2744.8,2744.7,5.35921914]
[1724644559490,0.0029985,2744.8,2744.7,5.35922702]
[1724644559993,0.0029985,2744.8,2744.7,4.40533111]
[1724644560195,0.0029985,2744.8,2744.7,5.35915173]
[1724644560798,0.0029985,2744.8,2744.7,3.53762089]
[1724644561391,0.0029985,2744.8,2744.7,3.53821185]
[1724644562396,0.0029985,2744.8,2744.7,3.18511185]
[1724644562595,1.91411334,2744.8,2744.7,3.18511185]
[1724644562797,1.91411334,2744.8,2744.7,1.51092185]
[1724644563095,2.66711334,2744.8,2744.7,1.51092185]
[1724644564192,2.66711334,2744.8,2744.7,1.51095201]
[1724644564905,2.66711334,2744.8,2744.7,1.87514201]
[1724644565200,2.66711334,2744.8,2744.7,1.51095201]
[1724644566500,2.66711334,2744.8,2744.7,1.87514201]
[1724644567507,0.7559985,2744.8,2744.7,3.69675846]
[1724644567705,0.7559985,2744.8,2744.7,2.77543707]
[1724644568011,0.7559985,2744.8,2744.7,3.33253007]
[1724644568707,2.66711334,2744.8,2744.7,1.51091362]
[1724644568905,2.66711334,2744.8,2744.7,0.95382062]
[1724644569100,7.98449334,2744.8,2744.7,1.5109334]
[1724644569298,7.98449334,2744.8,2744.7,0.55711278]
[1724644569299,8.46227205,2744.8,2744.7,0.55711278]
[1724644570402,8.09809205,2744.8,2744.7,0.55724626]
[1724644570707,8.46227205,2744.8,2744.7,0.55724626]
[1724644571024,8.46227205,2744.8,2744.5,1.31804062]
[1724644571198,1.91093395,2744.7,2744.5,1.31804062]
[1724644571398,2.27512395,2744.7,2744.6,0.55719807]
[1724644571605,2.27512395,2744.7,2744.6,1.11439614]
[1724644571807,5.91832395,2744.7,2744.6,1.11439614]
[1724644572008,5.55413395,2744.7,2744.6,1.47860614]
[1724644572205,5.55413395,2744.7,2744.6,2.43242676]
[1724644572403,1.91093395,2744.7,2744.6,2.43242676]
[1724644574214,1.91093395,2744.7,2744.6,1.87522869]
[1724644574515,1.91093395,2744.7,2744.6,1.31803062]
[1724644574814,3.97693245,2744.8,2744.6,4.45472485]
[1724644575011,4.34111245,2744.8,2744.7,0.55718598]
[1724644575407,3.03111245,2744.8,2744.7,0.55718598]
[1724644576109,1.1201785,2744.8,2744.7,0.55718598]
[1724644577515,3.03099202,2744.8,2744.7,0.55718598]
[1724644578315,3.03099202,2744.8,2744.7,0.55720745]
[1724644579014,0.0029985,2744.8,2744.7,4.17407375]
[1724644579214,0.0029985,2744.8,2744.7,4.54367375]
[1724644579418,0.0029985,2744.8,2744.7,3.11255901]
[1724644579818,0.0029985,2744.8,2744.7,1.29099745]
[1724644580019,0.0029985,2744.8,2744.7,5.02057739]
[1724644580328,0.0029985,2744.8,2744.7,3.1124244]
[1724644581245,0.0029985,2744.8,2744.7,4.54407215]
[1724644581419,0.0029985,2744.8,2744.7,4.54379348]
[1724644581714,0.0029985,2744.8,2744.7,4.17419348]
[1724644584216,0.0029985,2744.8,2744.7,2.74254573]
[1724644584714,0.0029985,2744.8,2744.7,2.18563967]
[1724644584918,0.0029985,2744.8,2744.7,2.74254738]
[1724644585316,0.0029985,2744.8,2744.7,3.29945408]
[1724644585517,0.0029985,2744.8,2744.7,2.74254637]
[1724644585915,0.0029985,2744.8,2744.7,5.95034637]
[1724644586118,0.0029985,2744.8,2744.7,7.38195548]
[1724644586428,0.0029985,2744.8,2744.7,9.59354637]
[1724644586920,0.0029985,2744.8,2744.7,11.02509305]
[1724644587115,0.0029985,2744.8,2744.7,11.02505464]
[1724644587316,0.0029985,2744.8,2744.7,9.59354637]
[1724644588307,0.0029985,2744.8,2744.7,9.59343098]
[1724644588513,0.0029985,2744.8,2744.7,11.0244519]
[1724644589624,0.0029985,2744.8,2744.7,9.59343098]
[1724644590715,0.0029985,2744.8,2744.7,7.38097954]
[1724644590923,0.0029985,2744.8,2744.7,11.02417954]
[1724644591519,0.0029985,2744.8,2744.7,10.46738823]
[1724644591714,0.0029985,2744.8,2744.7,11.02407218]
[1724644592727,0.0029985,2744.8,2744.7,7.38087218]
[1724644593522,0.0029985,2744.8,2744.7,11.02407218]
[1724644594031,0.0029985,2744.8,2744.7,5.95012362]
[1724644594421,0.0029985,2744.8,2744.7,5.95019001]
[1724644595929,0.0029985,2744.8,2744.7,3.3320755]
[1724644596119,0.3671785,2744.8,2744.7,1.51055944]
[1724644596520,0.3560985,2744.8,2744.7,1.51055944]
[1724644596726,0.3560985,2744.8,2744.7,3.33212856]
[1724644596929,0.3560985,2744.8,2744.7,1.61055944]
[1724644597316,0.3560985,2744.8,2744.7,3.4321395]
[1724644597725,0.3560985,2744.8,2744.7,2.87544219]
[1724644597926,0.3560985,2744.8,2744.7,3.43216186]
[1724644598129,0.3560985,2744.8,2744.7,3.43215193]
[1724644598331,0.3560985,2744.8,2744.7,1.97478516]
[1724644598519,0.3560985,2744.8,2744.7,2.842474]
[1724644598923,0.3560985,2744.8,2744.7,3.584174]
[1724644599434,0.3560985,2744.8,2744.7,3.5841351]
[1724644599927,0.3560985,2744.8,2744.7,3.2199451]
[1724644600130,0.3560985,2744.8,2744.7,2.35185085]
[1724644600320,0.3560985,2744.8,2744.7,4.17340334]
[1724644600523,0.3560985,2744.8,2744.7,4.17339874]
[1724644601028,0.3560985,2744.8,2744.7,5.84758874]
[1724644601228,0.3560985,2744.8,2744.7,6.69950612]
[1724644601726,0.3560985,2744.8,2744.7,6.14278645]
[1724644602334,0.3560985,2744.8,2744.7,6.69915584]
[1724644604035,0.3560985,2744.8,2744.7,5.26840728]
[1724644604333,0.3560985,2744.8,2744.7,6.69909835]
[1724644604635,0.3560985,2744.8,2744.7,9.90689835]
[1724644605026,0.3560985,2744.8,2744.7,6.69909835]
[1724644605235,0.3560985,2744.8,2744.7,7.9197804]
[1724644605526,0.0029985,2744.8,2744.7,13.55014176]
[1724644605732,0.0029985,2744.8,2744.7,13.54922182]
[1724644605925,0.0029985,2744.8,2744.7,14.10558186]
[1724644606431,0.0029985,2744.8,2744.7,13.54922182]
[1724644606637,0.0029985,2744.8,2744.7,14.10558289]
[1724644607422,0.0029985,2744.8,2744.7,14.10559329]
[1724644608733,0.0029985,2744.8,2744.7,13.54922182]
[1724644608939,0.0029985,2744.8,2744.7,14.10535755]
[1724644609238,2.29511352,2745.1,2744.9,0.36416]
[1724644609428,2.29511352,2745.1,2745.0,0.55613573]
[1724644610335,2.29920344,2745.1,2745.0,0.55613573]
[1724644610639,0.38838992,2745.1,2745.0,0.92028573]
[1724644610833,0.38838992,2745.1,2745.0,0.36415]
[1724644611335,0.38838992,2745.1,2745.0,0.92026684]
[1724644612239,0.00408992,2745.1,2745.0,6.82619005]
[1724644612435,0.00408992,2745.1,2745.0,9.503116]
[1724644612739,0.00408992,2745.1,2745.0,8.07328738]
[1724644613331,0.3859,2745.3,2745.2,0.36413]
[1724644613526,0.3859,2745.3,2745.2,3.18239053]
[1724644614030,0.3859,2745.3,2745.2,2.23019138]
[1724644614243,0.38847283,2745.3,2745.2,2.23019138]
[1724644614628,0.38847283,2745.3,2745.2,1.67413]
[1724644614934,0.38847283,2745.3,2745.2,3.18230041]
[1724644615239,0.38847283,2745.3,2745.2,2.23010126]
[1724644615432,0.75258283,2745.3,2745.2,0.55597126]
[1724644615635,0.38847283,2745.3,2745.2,0.55597126]
[1724644616138,0.75258283,2745.3,2745.2,0.55597126]
[1724644616326,0.38847283,2745.3,2745.2,0.55597126]
[1724644616639,0.38847283,2745.3,2745.2,0.55598969]
[1724644619227,0.38847283,2745.3,2745.2,0.92011969]
[1724644619444,0.38847283,2745.3,2745.2,0.55598969]
[1724644619741,0.38847283,2745.3,2745.2,2.23011969]
[1724644624035,0.38847283,2745.3,2745.2,2.23011535]
[1724644625237,0.38847283,2745.3,2745.2,2.23002851]
[1724644626634,0.38847283,2745.3,2745.2,2.98582851]
[1724644628434,0.38847283,2745.3,2745.2,0.55589851]
[1724644628744,0.38847283,2745.3,2745.1,1.31]
[1724644628745,0.75258283,2745.3,2745.1,1.31]
[1724644629540,0.75258283,2745.3,2745.1,1.67414]
[1724644630646,0.38847283,2745.3,2745.1,1.67414]
[1724644631245,0.75258283,2745.3,2745.1,1.31]
[1724644631638,0.38847283,2745.3,2745.1,1.31]
[1724644632242,0.75259283,2745.3,2745.1,1.31]
[1724644633337,1.67413,2745.2,2745.0,0.00546687]
[1724644633538,0.7093,2745.1,2745.0,0.00546687]
[1724644634245,0.7093,2745.1,2745.0,0.56114844]
[1724644635943,0.7093,2745.1,2745.0,0.56104447]
[1724644636145,0.7093,2745.1,2744.8,0.25697187]
[1724644636146,3.6432,2745.0,2744.8,0.25697187]
[1724644636347,0.36418,2744.8,2744.7,0.1]
[1724644636645,2.75307355,2744.8,2744.7,0.1]
[1724644636846,4.00738,2744.8,2744.7,0.1]
[1724644638441,5.91545601,2744.8,2744.7,0.1]
[1724644639451,6.28295601,2744.8,2744.7,0.1]
[1724644640844,4.37488,2744.8,2744.7,0.1]
[1724644641046,6.28244443,2744.8,2744.7,0.1]
[1724644642143,4.37488,2744.8,2744.7,0.1]
[1724644642446,6.28244443,2744.8,2744.7,0.1]
[1724644643250,0.3675,2744.8,2744.7,0.1]
[1724644643751,4.0107,2744.8,2744.7,0.1]
[1724644643954,0.3675,2744.8,2744.7,0.1]
[1724644644746,4.0107,2744.8,2744.7,0.1]
[1724644644946,4.37488,2744.8,2744.7,0.1]
[1724644645456,6.28244443,2744.8,2744.7,0.1]
[1724644646354,4.37488,2744.8,2744.7,0.1]
[1724644670669,0.73168,2744.8,2744.7,0.1]
[1724644670869,4.37488,2744.8,2744.7,0.1]
[1724644671074,0.73168,2744.8,2744.7,0.1]
[1724644671374,4.37488,2744.8,2744.7,0.1]
[1724644672161,6.28244443,2744.8,2744.7,0.1]
[1724644672365,2.63924443,2744.8,2744.7,0.1]
[1724644672773,6.28244443,2744.8,2744.7,0.1]
[1724644673069,2.63924443,2744.8,2744.7,0.1]
[1724644673772,6.28244443,2744.8,2744.7,0.1]
[1724644676779,6.28315286,2744.8,2744.7,0.1]
[1724644677272,4.37488,2744.8,2744.7,0.1]
[1724644678971,6.76377355,2744.8,2744.7,0.1]
[1724644679274,3.12057355,2744.8,2744.7,0.1]
[1724644680371,0.73168,2744.8,2744.7,0.1]
[1724644680876,5.28534,2744.8,2744.7,0.1]
[1724644681774,8.15201226,2744.8,2744.7,0.1]
[1724644682278,8.49314,2744.8,2744.7,0.1]
[1724644682479,11.36116235,2744.8,2744.7,0.1]
[1724644683575,12.67116235,2744.8,2744.7,0.1]
[1724644683769,9.80314,2744.8,2744.7,0.1]
[1724644684279,12.67116235,2744.8,2744.7,0.1]
[1724644684671,9.80314,2744.8,2744.7,0.1]
[1724644685073,12.67116235,2744.8,2744.7,0.1]
[1724644685968,9.46336235,2744.8,2744.7,0.1]
[1724644686169,12.67116235,2744.8,2744.7,0.1]
[1724644689281,4.88198,2744.8,2744.7,0.1]
[1724644689576,4.88198,2744.8,2744.7,0.8486]
[1724644696275,1.67418,2744.8,2744.7,0.8486]
[1724644701879,0.36418,2744.8,2744.7,0.8486]
[1724644702181,4.06332989,2744.8,2744.7,1.40455577]
[1724644702681,1.67418,2744.8,2744.7,0.8486]
[1724644704078,2.38913094,2744.8,2744.7,1.76874077]
[1724644704490,1.67417,2744.9,2744.7,1.21279]
[1724644704491,4.06330094,2744.9,2744.7,1.21279]
[1724644704780,2.38913094,2744.8,2744.7,1.76869664]
[1724644704986,4.06330094,2744.9,2744.7,1.76869883]
[1724644705183,4.06330094,2744.9,2744.7,1.21279]
[1724644705372,3.69913094,2744.9,2744.8,0.36418]
[1724644705578,2.38913094,2745.0,2744.9,0.36417]
[1724644705876,1.91080282,2745.1,2745.0,0.36415]
[1724644706076,1.91080282,2745.2,2745.1,0.36414]
[1724644706383,1.91080282,2745.2,2745.1,1.63034666]
[1724644706780,3.22080282,2745.2,2745.1,1.26620666]
[1724644707586,1.31,2745.2,2745.1,1.26620666]
[1724644707977,1.31,2745.2,2745.1,1.26607315]
[1724644708377,1.31,2745.2,2745.1,0.7103]
[1724644709581,3.94843282,2745.2,2745.1,0.7103]
[1724644711578,2.03763,2745.2,2745.1,0.7103]
[1724644712888,1.6735,2745.2,2745.1,0.7103]
[1724644714086,2.03763,2745.2,2745.1,0.7103]
[1724644716589,1.6735,2745.2,2745.1,0.7103]
[1724644717889,1.6735,2745.2,2745.1,1.07444]
[1724644718692,1.6735,2745.2,2745.1,0.7103]
[1724644719195,1.6735,2745.2,2745.1,1.07444]
[1724644719990,0.3635,2745.2,2745.1,1.07444]
[1724644722691,1.6821597,2745.3,2745.1,4.71684]
[1724644722891,1.6821597,2745.3,2745.1,1.07444]
[1724644723099,1.3180397,2745.3,2745.1,1.07444]
[1724644723486,0.0080397,2745.3,2745.2,0.36413]
[1724644723994,0.0080397,2745.3,2745.2,4.00653]
[1724644729691,0.0080397,2745.3,2745.2,0.36413]
[1724644730399,1.3180397,2745.3,2745.2,0.36413]
[1724644732288,1.6821497,2745.3,2745.1,2.38443]
[1724644732498,0.3704,2745.2,2745.1,2.38443]
[1724644733003,0.3704,2745.2,2745.1,6.02683]
[1724644733395,0.3704,2745.2,2745.1,1.67413]
[1724644733703,0.754,2745.2,2745.1,0.36413]
[1724644741605,0.754,2745.2,2745.1,0.36414]
[1724644741802,0.3704,2745.2,2745.1,0.36414]
[1724644743010,0.0080397,2745.3,2745.2,0.36413]
[1724644743206,0.0080397,2745.3,2745.2,6.04793]
[1724644749524,0.0080397,2745.3,2745.2,0.7314]
[1724644749699,1.91884252,2745.3,2745.1,0.36413]
[1724644750108,0.3583,2745.2,2745.1,0.36413]
[1724644751406,2.26910282,2745.2,2745.1,0.36413]
[1724644752902,2.26910282,2745.2,2745.1,1.67413]
[1724644753105,0.3583,2745.2,2745.1,3.49550985]
[1724644753504,0.3583,2745.2,2745.1,4.92380858]
[1724644753708,0.3583,2745.2,2745.0,0.3527]
[1724644753709,2.63323282,2745.2,2745.0,1.78099873]
[1724644753908,1.91080282,2745.1,2744.9,1.79245873]
[1724644754113,1.91080282,2745.1,2744.9,0.72416]
[1724644754517,1.91080282,2745.1,2745.0,0.36415]
[1724644754819,1.91080282,2745.1,2744.9,0.72416]
[1724644755113,1.91080282,2745.1,2744.9,2.15245873]
[1724644755314,1.91080282,2745.1,2745.0,0.36415]
[1724644756306,1.91080282,2745.1,2745.0,1.87388252]
[1724644756920,2.66940282,2745.1,2745.0,1.87388252]
[1724644758218,0.7586,2745.1,2745.0,4.05168057]
[1724644758617,1.91080282,2745.1,2745.0,3.69522878]
[1724644759516,1.91080282,2745.1,2745.0,1.87385471]
[1724644760214,1.91080282,2745.1,2745.0,1.31769821]
[1724644760609,1.91080282,2745.1,2745.0,1.87382885]
[1724644761224,1.91080282,2745.1,2745.0,1.31769821]
[1724644761623,1.91080282,2745.1,2745.0,1.87393328]
[1724644762322,1.91080282,2745.1,2745.0,4.25156727]
[1724644762521,2.26910282,2745.2,2745.1,0.36414]
[1724644762721,2.26910282,2745.2,2745.1,3.69553218]
[1724644762920,2.26910282,2745.2,2745.1,3.69545452]
[1724644763323,2.26910282,2745.2,2745.1,3.69544293]
[1724644764624,2.26910282,2745.2,2745.1,1.31785592]
[1724644765119,2.26910282,2745.2,2745.1,2.43011153]
[1724644768026,2.26910282,2745.2,2745.1,4.25143584]
[1724644769323,2.26910282,2745.2,2745.1,2.43011153]
[1724644770829,1.91080282,2745.2,2745.1,4.25144081]
[1724644771030,1.91080282,2745.2,2745.1,4.25144069]
[1724644771525,1.91080282,2745.2,2745.1,3.69534714]
[1724644771732,1.91080282,2745.2,2745.1,4.25136373]
[1724644772126,1.91080282,2745.2,2745.1,3.69520167]
[1724644772830,1.91884252,2745.3,2745.2,0.36413]
[1724644773033,1.91884252,2745.3,2745.2,2.25524096]
[1724644773530,1.91911632,2745.3,2745.2,1.89111096]
[1724644773733,2.39717064,2745.3,2745.2,1.30184659]
[1724644773930,0.0080397,2745.3,2745.2,1.30184659]
[1724644774636,0.0080397,2745.3,2745.2,0.74583]
[1724644775022,0.0080397,2745.3,2745.2,1.30185952]
[1724644775727,0.0080397,2745.3,2745.2,2.25525389]
[1724644778628,0.3721497,2745.3,2745.2,0.93772952]
[1724644778834,0.0080397,2745.3,2745.2,0.93772952]
[1724644779831,2.39717064,2745.3,2745.2,0.93772952]
[1724644780428,0.0080397,2745.3,2745.2,0.93772952]
[1724644781234,0.0080397,2745.3,2745.2,0.93777828]
[1724644781739,0.0080397,2745.3,2745.2,0.3817]
[1724644781929,2.39717064,2745.3,2745.2,0.93777852]
[1724644784738,2.39717064,2745.3,2745.2,0.93776686]
[1724644785632,0.0080397,2745.3,2745.2,0.93776686]
[1724644786941,2.39717064,2745.3,2745.2,0.93776686]
[1724644787135,0.0080397,2745.3,2745.2,0.93776686]
[1724644787333,2.39717064,2745.3,2745.2,0.93776686]
[1724644787837,0.0080397,2745.3,2745.2,1.30189686]
[1724644792743,2.39717064,2745.3,2745.2,1.30189686]
[1724644793336,0.0080397,2745.3,2745.2,1.30189686]
[1724644793739,2.39717064,2745.3,2745.2,1.30189686]
[1724644794531,2.39717064,2745.3,2745.2,2.25529123]
[1724644794532,0.0080397,2745.3,2745.2,2.25529123]
[1724644794938,0.0080397,2745.3,2745.2,1.30189686]
[1724644795441,0.0080397,2745.3,2745.2,0.93776686]
[1724644795640,0.0080397,2745.3,2745.2,0.55606686]
[1724644795641,2.39717064,2745.3,2745.2,0.55606686]
[1724644796242,0.3721497,2745.3,2745.2,0.55606686]
[1724644796445,4.0145497,2745.3,2745.2,0.55606686]
[1724644796749,5.3245497,2745.3,2745.2,0.55606686]
[1724644797244,7.7137038,2745.3,2745.2,0.55606686]
[1724644797748,5.3245497,2745.3,2745.0,1.31754437]
[1724644797943,1.91134276,2745.1,2745.0,1.31754437]
[1724644798246,1.91134276,2745.1,2745.0,3.69523036]
[1724644798542,1.91134276,2745.1,2745.0,3.69564904]
[1724644798740,1.91134276,2745.1,2745.0,3.695651]